bitfinex/quotes_BTCUSD_20220307
["timestamp","ask_amount","ask_price","bid_price","bid_amount"]
[1646633966830,0.00021001,38117.0,38115.0,0.71320996]
[1646633967030,0.099922,38120.0,38116.0,1.63573402]
[1646633967231,7.942e-05,38118.0,38117.0,0.38585363]
[1646633967431,0.0011,38122.0,38117.0,0.38585363]
[1646633968088,0.03108094,38124.0,38117.0,0.38585363]
[1646633968289,0.0011,38124.0,38117.0,0.38585363]
[1646633968492,0.0011,38124.0,38119.0,0.065606]
[1646633968690,0.0011,38124.0,38120.0,0.38573402]
[1646633968889,0.00095794,38124.0,38120.0,0.38573402]
[1646633969290,0.00095794,38124.0,38123.0,0.17181436]
[1646633969291,0.00111447,38124.0,38123.0,0.17181436]
[1646633970196,0.00095794,38124.0,38123.0,0.17181436]
[1646633972232,0.00095794,38124.0,38119.0,0.065606]
[1646633972432,0.00095794,38124.0,38123.0,0.00012334]
[1646633973036,0.006927,38133.0,38125.0,0.0656]
[1646633973037,0.0022,38133.0,38125.0,0.0656]
[1646633973234,0.1,38131.0,38126.0,0.38573402]
[1646633973437,0.0022,38133.0,38126.0,0.41200402]
[1646633973635,0.0022,38133.0,38130.0,0.21083203]
[1646633973636,0.0011,38133.0,38130.0,0.21083203]
[1646633973835,0.0011,38133.0,38132.0,0.15682875]
[1646633974035,0.21977245,38139.0,38133.0,1.05]
[1646633974439,0.21977245,38139.0,38133.0,1.115587]
[1646633974836,0.1011,38138.0,38133.0,1.115587]
[1646633975238,0.1011,38138.0,38133.0,1.50132102]
[1646633975482,0.1011,38138.0,38133.0,1.115587]
[1646633977178,0.1011,38138.0,38133.0,1.49871758]
[1646633977377,0.0122,38139.0,38134.0,1.25]
[1646633977577,0.0122,38139.0,38136.0,0.196715]
[1646633977776,0.09985445,38142.0,38137.0,0.38221722]
[1646633978180,0.00172226,38143.0,38138.0,0.21365476]
[1646633978378,0.00172226,38143.0,38139.0,0.38221722]
[1646633978578,0.0011,38143.0,38140.0,0.065571]
[1646633982432,0.00132788,38143.0,38140.0,0.065571]
[1646633982632,0.00132788,38143.0,38142.0,0.00010909]
[1646633983494,0.0011,38143.0,38142.0,0.00010909]
[1646633985294,0.0011,38143.0,38142.0,0.23407012]
[1646633988430,0.0022,38144.0,38142.0,0.61628734]
[1646633988638,0.00091223,38150.0,38143.0,1.83451722]
[1646633988835,0.00091223,38150.0,38145.0,0.131132]
[1646633989031,0.78642,38149.0,38147.0,0.13109374]
[1646633989228,0.0022,38157.0,38149.0,1.25]
[1646633989434,0.0022,38157.0,38151.0,0.46554508]
[1646633989730,0.19412888,38163.0,38151.0,0.46554508]
[1646633989731,0.0022,38163.0,38153.0,1.25]
[1646633989932,0.0022,38163.0,38155.0,1.4465958]
[1646633990134,0.03427379,38169.0,38156.0,1.71078722]
[1646633990383,0.01,38169.0,38162.0,0.02627]
[1646633990586,0.01,38169.0,38163.0,0.39544636]
[1646633990785,0.01,38169.0,38164.0,0.065514]
[1646633990983,0.01,38169.0,38165.0,0.0523]
[1646633991187,0.00014398,38167.0,38165.0,0.0523]
[1646633991382,0.78602,38166.0,38165.0,0.0523]
[1646633991582,0.78602,38166.0,38163.0,0.19314636]
[1646633992183,0.78616398,38166.0,38163.0,0.19314636]
[1646633992784,0.78616398,38166.0,38163.0,0.19281562]
[1646633993187,0.21545747,38166.0,38163.0,0.19281562]
[1646633993384,0.21567458,38166.0,38163.0,0.19281562]
[1646633994441,0.21545747,38166.0,38163.0,0.25834962]
[1646633994637,0.21567607,38166.0,38163.0,0.19281562]
[1646633994837,0.21567607,38166.0,38164.0,0.38719478]
[1646633995039,0.21567607,38166.0,38164.0,0.4527231]
[1646633995339,1.203e-05,38166.0,38165.0,0.41346478]
[1646633995538,0.0022,38178.0,38165.0,0.41346478]
[1646633995539,0.02289747,38177.0,38166.0,1.381039]
[1646633995738,0.02289747,38177.0,38171.0,0.28280883]
[1646633995739,0.0011,38177.0,38171.0,0.28280883]
[1646633995941,0.0011,38177.0,38172.0,0.16214167]
[1646633995942,0.02412491,38177.0,38172.0,0.16214167]
[1646633997545,0.02412491,38177.0,38166.0,1.381039]
[1646633998083,0.02412491,38177.0,38168.0,0.24358146]
[1646633998285,0.00201724,38177.0,38170.0,1.25]
[1646633998483,0.00201724,38177.0,38171.0,0.38349442]
[1646633999289,0.0011,38177.0,38172.0,0.20916788]
[1646633999487,0.0011,38177.0,38174.0,0.25713885]
[1646633999686,0.0011,38177.0,38175.0,0.38349442]
[1646633999886,0.0011,38177.0,38174.0,0.25713885]
[1646634000289,0.0011,38177.0,38175.0,0.38349442]
[1646634000490,0.0011,38178.0,38176.0,1.25]
[1646634000787,0.0011,38178.0,38177.0,0.38349442]
[1646634001191,0.0011,38183.0,38178.0,1.25]
[1646634001394,0.1,38192.0,38190.0,0.25721224]
[1646634001641,0.09,38192.0,38191.0,0.189316]
[1646634001829,0.004749,38196.0,38191.0,0.189316]
[1646634002031,0.392294,38195.0,38191.0,0.189316]
[1646634002231,0.008,38192.0,38191.0,0.189316]
[1646634002531,0.45932754,38192.0,38182.0,0.585699]
[1646634002731,0.06703354,38192.0,38182.0,0.183299]
[1646634002932,0.02490467,38191.0,38182.0,0.46381833]
[1646634003132,0.00022931,38189.0,38182.0,0.183299]
[1646634003534,0.00022931,38189.0,38183.0,0.18364871]
[1646634003935,0.20609998,38191.0,38183.0,0.18364871]
[1646634004131,0.06476073,38193.0,38183.0,0.18364871]
[1646634004332,0.00022931,38188.0,38183.0,0.18364871]
[1646634005133,0.38349442,38192.0,38183.0,0.18364871]
[1646634005134,0.19665084,38191.0,38183.0,0.18364871]
[1646634005381,0.00022931,38187.0,38183.0,0.41504438]
[1646634005579,0.00022931,38187.0,38183.0,0.18364871]
[1646634005781,0.00022931,38187.0,38183.0,0.56714313]
[1646634006184,0.00022931,38187.0,38183.0,0.18364871]
[1646634006379,0.02414247,38193.0,38183.0,0.18364871]
[1646634006582,0.05703992,38190.0,38183.0,0.11392576]
[1646634006779,0.02414247,38193.0,38181.0,0.944105]
[1646634006780,0.00022931,38187.0,38181.0,0.944105]
[1646634006983,0.00022931,38187.0,38181.0,0.8131]
[1646634007579,0.02104918,38187.0,38181.0,0.8131]
[1646634007785,0.02770585,38186.0,38181.0,0.8131]
[1646634007979,0.02728361,38185.0,38181.0,0.8131]
[1646634008181,0.07385862,38181.0,38175.0,0.9704]
[1646634008482,0.09424452,38181.0,38174.0,0.131018]
[1646634008682,0.09424452,38181.0,38166.0,0.073613]
[1646634008683,0.392294,38179.0,38166.0,0.073613]
[1646634008880,0.0523,38178.0,38167.0,0.88227722]
[1646634009134,0.28824542,38176.0,38167.0,0.5]
[1646634009339,0.28824542,38176.0,38157.0,1.87813342]
[1646634009340,0.82687122,38175.0,38158.0,0.01308]
[1646634009633,0.82687122,38175.0,38156.0,0.0131]
[1646634009634,0.20245679,38165.0,38156.0,0.0131]
[1646634009934,0.15,38170.0,38153.0,0.0131]
[1646634009935,0.19678895,38159.0,38153.0,0.0131]
[1646634010134,0.19678895,38159.0,38155.0,0.0002247]
[1646634010332,0.19678895,38159.0,38156.0,0.18392388]
[1646634011234,1.23082779,38158.0,38146.0,0.078664]
[1646634011437,1.23082779,38158.0,38155.0,0.0001997]
[1646634011438,0.38227722,38157.0,38155.0,0.0001997]
[1646634011638,0.0523,38156.0,38155.0,0.0001997]
[1646634011835,0.8381,38156.0,38155.0,0.0001997]
[1646634012233,1.233394,38156.0,38155.0,0.0001997]
[1646634012435,1.233394,38156.0,38148.0,0.15442876]
[1646634012436,0.392294,38155.0,38148.0,0.15442876]
[1646634012635,0.02353632,38149.0,38141.0,0.27941893]
[1646634012893,0.02446649,38148.0,38141.0,0.27941893]
[1646634013087,0.0523,38147.0,38141.0,0.27941893]
[1646634013390,0.0523,38147.0,38138.0,1.810748]
[1646634013391,0.392294,38146.0,38138.0,0.442]
[1646634013588,0.43457722,38145.0,38141.0,0.17588444]
[1646634013785,0.43457722,38145.0,38142.0,0.00019977]
[1646634013786,0.0523,38145.0,38142.0,0.00019977]
[1646634014887,0.0523,38145.0,38141.0,0.17588444]
[1646634015088,0.0523,38145.0,38142.0,0.000207]
[1646634016091,0.0523,38145.0,38141.0,0.17588444]
[1646634016291,0.0523,38145.0,38142.0,0.000207]
[1646634017127,0.0523,38145.0,38141.0,0.17588444]
[1646634017329,0.0523,38145.0,38142.0,0.000207]
[1646634017529,0.004744,38152.0,38142.0,0.000207]
[1646634017530,0.0523,38150.0,38142.0,0.000207]
[1646634017731,0.004744,38152.0,38150.0,0.29463949]
[1646634018130,0.02699534,38152.0,38150.0,0.29463949]
[1646634018331,0.02699534,38152.0,38150.0,0.49997204]
[1646634019531,0.004744,38152.0,38150.0,0.49997204]
[1646634019830,0.02270078,38152.0,38150.0,0.49997204]
[1646634020029,0.0523,38156.0,38150.0,0.49997204]
[1646634020234,0.02622417,38152.0,38150.0,0.49997204]
[1646634020480,0.0282956,38152.0,38150.0,0.49997204]
[1646634020679,0.0523,38156.0,38150.0,0.49997204]
[1646634020979,0.02464987,38153.0,38150.0,0.49997204]
[1646634021784,0.02464987,38153.0,38150.0,0.29463949]
[1646634022182,0.02464987,38153.0,38150.0,0.29484441]
[1646634023181,0.0523,38156.0,38145.0,0.62028348]
[1646634023182,0.23966815,38154.0,38145.0,0.62028348]
[1646634023379,0.02634346,38153.0,38150.0,0.00020492]
[1646634024432,0.02634346,38153.0,38148.0,0.065567]
[1646634024630,0.02634346,38153.0,38151.0,0.4169491]
[1646634025430,0.02634346,38153.0,38150.0,0.00020492]
[1646634025631,0.02634346,38153.0,38145.0,0.57313]
[1646634025834,0.02634346,38153.0,38150.0,0.00020478]
[1646634026031,0.02055637,38152.0,38150.0,0.00020478]
[1646634026631,0.392294,38151.0,38150.0,0.00020478]
[1646634026831,0.392294,38151.0,38145.0,0.90791265]
[1646634026832,0.16302726,38151.0,38145.0,0.442]
[1646634027036,0.16302726,38151.0,38149.0,0.00020479]
[1646634027037,0.74031808,38150.0,38149.0,0.00020479]
[1646634027233,0.392294,38150.0,38149.0,0.00020479]
[1646634028086,0.0523,38151.0,38142.0,0.065576]
[1646634028284,0.0523,38151.0,38148.0,0.0002048]
[1646634028285,0.005,38150.0,38148.0,0.0002048]
[1646634028485,0.23966815,38149.0,38148.0,0.0002048]
[1646634029186,0.23966815,38149.0,38147.0,0.21524304]
[1646634029386,0.23966815,38149.0,38147.0,0.21544787]
[1646634029597,0.23966815,38149.0,38147.0,0.00020483]
[1646634030393,0.24366815,38149.0,38138.0,0.38416586]
[1646634030589,0.24366815,38149.0,38146.0,0.00020484]
[1646634030990,0.24366815,38149.0,38143.0,0.19355931]
[1646634031628,0.23966815,38149.0,38143.0,0.19355931]
[1646634032433,0.23966815,38149.0,38148.0,0.00010848]
[1646634033629,0.23966815,38149.0,38148.0,0.23574074]
[1646634034029,0.23617653,38149.0,38148.0,0.23574074]
[1646634035783,0.23617653,38149.0,38148.0,0.6199066]
[1646634036983,0.23617653,38149.0,38148.0,0.68545855]
[1646634039532,0.02834394,38159.0,38156.0,0.24328105]
[1646634039733,0.0235987,38158.0,38156.0,0.131093]
[1646634039936,0.004697,38167.0,38156.0,0.131093]
[1646634040133,0.0226325,38157.0,38156.0,0.131093]
[1646634040732,0.00021556,38163.0,38156.0,0.131093]
[1646634040937,0.00021556,38163.0,38160.0,0.2500617]
[1646634041136,0.004624,38178.0,38161.0,1.81796068]
[1646634041337,0.78597,38177.0,38162.0,0.0523]
[1646634041536,0.78597,38177.0,38163.0,0.38460568]
[1646634041736,0.19202119,38176.0,38171.0,0.15611236]
[1646634041939,0.19202119,38176.0,38171.0,0.22163736]
[1646634042136,0.78597,38177.0,38171.0,0.22163736]
[1646634042339,0.78597,38177.0,38171.0,0.4607596]
[1646634044883,0.78597,38177.0,38171.0,0.3952346]
[1646634045083,0.00015411,38176.0,38171.0,0.3952346]
[1646634045289,0.00015411,38176.0,38171.0,0.15611236]
[1646634045983,0.78597,38177.0,38171.0,0.15611236]
[1646634046184,0.00015411,38175.0,38171.0,0.15611236]
[1646634047246,0.007,38176.0,38173.0,0.00010595]
[1646634047549,0.00015411,38175.0,38173.0,0.00010595]
[1646634047951,0.00015411,38175.0,38173.0,0.06562895]
[1646634048552,0.78597,38177.0,38173.0,0.06562895]
[1646634048754,0.00022915,38176.0,38173.0,0.06562895]
[1646634048952,0.00022915,38176.0,38174.0,0.38291322]
[1646634049152,0.00022915,38176.0,38173.0,0.06562895]
[1646634049550,0.78597,38177.0,38174.0,0.38291322]
[1646634049950,0.00021208,38176.0,38174.0,0.38291322]
[1646634050406,0.77618208,38177.0,38175.0,1.05]
[1646634051206,0.77618208,38177.0,38174.0,0.38291322]
[1646634051506,0.77618208,38177.0,38173.0,0.06562895]
[1646634052406,0.77618208,38177.0,38175.0,0.00010575]
[1646634053209,0.20571876,38177.0,38175.0,0.00010575]
[1646634054235,0.20071876,38177.0,38175.0,0.00010575]
[1646634056432,0.00022914,38178.0,38176.0,0.65]
[1646634056633,0.00022914,38178.0,38177.0,0.17510656]
[1646634056834,0.0011,38184.0,38177.0,0.17510656]
[1646634057036,0.0011,38184.0,38178.0,0.065514]
[1646634057037,0.00022914,38179.0,38178.0,0.065514]
[1646634057437,0.00022914,38179.0,38176.0,0.65]
[1646634057438,0.00022914,38179.0,38176.0,0.00010565]
[1646634058085,0.19832853,38182.0,38176.0,0.00010565]
[1646634058282,0.00015417,38179.0,38176.0,0.00010565]
[1646634058485,0.00215417,38179.0,38176.0,0.00010565]
[1646634058688,0.45683064,38178.0,38176.0,0.00010565]
[1646634060287,0.50683064,38178.0,38176.0,0.00010565]
[1646634060785,1.17257736,38177.0,38176.0,0.00010565]
[1646634060986,1.61717136,38177.0,38176.0,0.00010565]
[1646634061632,1.62191436,38177.0,38176.0,0.00010565]
[1646634061834,1.82354262,38177.0,38176.0,0.00010565]
[1646634062633,1.73652829,38177.0,38161.0,0.41790204]
[1646634062835,0.21270225,38170.0,38161.0,0.41767257]
[1646634063035,0.38676736,38169.0,38161.0,0.41790204]
[1646634063235,0.21270225,38170.0,38161.0,0.41790204]
[1646634064037,0.38676736,38169.0,38161.0,0.41767257]
[1646634064239,0.38676736,38169.0,38161.0,0.41790199]
[1646634064839,0.44628778,38169.0,38161.0,0.41790199]
[1646634065237,0.44628778,38169.0,38161.0,0.41767257]
[1646634065483,0.44628778,38169.0,38161.0,0.41788183]
[1646634066387,0.44628778,38169.0,38161.0,0.41767257]
[1646634066585,0.44628778,38169.0,38161.0,0.41787428]
[1646634066787,0.05952042,38169.0,38161.0,0.41787428]
[1646634066988,0.44628778,38169.0,38161.0,0.41787428]
[1646634067387,0.44628778,38169.0,38163.0,0.00010696]
[1646634067586,0.05952042,38169.0,38163.0,0.00010696]
[1646634067789,0.44628778,38169.0,38163.0,0.00010696]
[1646634068190,0.392294,38168.0,38163.0,0.00010696]
[1646634068387,0.55337305,38164.0,38163.0,0.00010696]
[1646634068589,0.94014041,38164.0,38163.0,0.00010696]
[1646634069640,1.72595041,38164.0,38163.0,0.00010696]
[1646634069839,1.77825041,38164.0,38163.0,0.00010696]
[1646634070038,1.82825041,38164.0,38163.0,0.00010696]
[1646634070437,1.83125041,38164.0,38163.0,0.00010696]
[1646634070943,3.95215997,38164.0,38163.0,0.00010696]
[1646634071138,4.17749341,38164.0,38163.0,0.00010696]
[1646634071740,4.14917201,38164.0,38163.0,0.00010696]
[1646634071939,4.3517602,38164.0,38163.0,0.00010696]
[1646634072341,4.35175869,38164.0,38163.0,0.00010696]
[1646634072544,4.35175869,38164.0,38161.0,0.00010696]
[1646634072743,1.11617709,38162.0,38161.0,0.00010696]
[1646634072987,2.83809145,38162.0,38161.0,0.00010696]
[1646634073190,2.93809145,38162.0,38161.0,0.00010696]
[1646634073391,2.03659145,38162.0,38161.0,0.00010696]
[1646634073590,1.77191436,38162.0,38161.0,0.00010696]
[1646634073790,1.88736053,38162.0,38161.0,0.00010696]
[1646634073993,1.88261753,38162.0,38161.0,0.00010696]
[1646634076494,1.50285017,38162.0,38161.0,0.00010696]
[1646634076935,1.65285017,38162.0,38161.0,0.00010696]
[1646634077334,0.392294,38161.0,38160.0,0.00010716]
[1646634077537,1.330404,38161.0,38160.0,0.00030432]
[1646634078535,1.330404,38161.0,38160.0,0.00010716]
[1646634078536,1.333404,38161.0,38160.0,0.00010716]
[1646634078935,1.433404,38161.0,38160.0,0.00010716]
[1646634079435,1.433404,38161.0,38160.0,1.044e-05]
[1646634079837,1.430404,38161.0,38160.0,1.044e-05]
[1646634081491,1.330404,38161.0,38160.0,1.044e-05]
[1646634082490,1.40066045,38161.0,38160.0,1.044e-05]
[1646634082689,1.40066045,38161.0,38159.0,0.00029964]
[1646634083290,0.20212574,38160.0,38159.0,0.00010243]
[1646634083491,1.38022974,38160.0,38159.0,0.00010243]
[1646634083691,1.48252974,38160.0,38159.0,0.00010243]
[1646634084136,1.72955545,38160.0,38159.0,0.00010243]
[1646634084535,1.73355545,38160.0,38159.0,0.00010243]
[1646634085938,1.72955545,38160.0,38159.0,0.00010243]
[1646634086138,1.43252974,38160.0,38159.0,0.00010243]
[1646634087738,1.43252974,38160.0,38152.0,0.00010253]
[1646634087988,0.06901826,38153.0,38152.0,0.00010253]
[1646634088184,1.04006749,38153.0,38152.0,0.00010253]
[1646634088582,0.78581,38153.0,38152.0,0.00010253]
[1646634088783,0.78581,38153.0,38152.0,0.17840716]
[1646634089381,1.178069,38153.0,38152.0,0.00010253]
[1646634090280,0.78581,38153.0,38152.0,0.00010253]
[1646634092553,0.78581,38153.0,38151.0,0.22019098]
[1646634092950,0.78581,38153.0,38151.0,0.00011471]
[1646634093555,0.392259,38152.0,38151.0,0.00011471]
[1646634094456,0.7772399,38152.0,38151.0,0.00011471]
[1646634094666,0.7822399,38152.0,38151.0,0.00011471]
[1646634094855,1.5680499,38152.0,38151.0,0.00011471]
[1646634095252,1.7914274,38152.0,38151.0,0.00011471]
[1646634095987,1.5680499,38152.0,38151.0,0.00011471]
[1646634096588,1.5660499,38152.0,38151.0,0.00011471]
[1646634096988,1.181069,38152.0,38151.0,0.00011471]
[1646634097388,1.181069,38152.0,38150.0,0.00030407]
[1646634097789,1.178069,38152.0,38150.0,0.0001078]
[1646634097987,0.392259,38151.0,38150.0,0.0001078]
[1646634098188,1.178069,38151.0,38150.0,0.0001078]
[1646634100242,0.78581,38151.0,38150.0,0.18992077]
[1646634101638,0.78581,38151.0,38150.0,0.0001078]
[1646634102448,0.78581,38151.0,38149.0,0.91446095]
[1646634102640,0.78581,38151.0,38150.0,1.0]
[1646634102892,0.78581,38151.0,38150.0,1.18389205]
[1646634103092,0.78581,38151.0,38150.0,1.0]
[1646634103994,0.78581,38151.0,38150.0,1.20778174]
[1646634104691,0.78581,38151.0,38150.0,1.0]
[1646634105393,1.178069,38151.0,38150.0,1.0]
[1646634106635,1.181069,38151.0,38150.0,1.0]
[1646634107338,1.181069,38151.0,38150.0,1.0001079]
[1646634107538,1.181069,38151.0,38150.0,0.0001079]
[1646634107738,1.178069,38151.0,38150.0,0.0001079]
[1646634108335,1.178069,38151.0,38150.0,1.086e-05]
[1646634108537,1.181069,38151.0,38150.0,1.086e-05]
[1646634110042,1.178069,38151.0,38150.0,1.086e-05]
[1646634112603,1.178069,38151.0,38149.0,0.91467952]
[1646634112810,0.78581,38151.0,38149.0,0.91467952]
[1646634113405,0.78581,38151.0,38149.0,0.91448186]
[1646634113806,0.78581,38151.0,38149.0,1.14095873]
[1646634116342,0.78581,38151.0,38149.0,0.91448186]
[1646634117441,0.78590739,38151.0,38149.0,0.91448186]
[1646634118194,0.2151055,38151.0,38149.0,0.91448186]
[1646634120192,0.392259,38150.0,38149.0,0.91448186]
[1646634120391,0.60547092,38150.0,38149.0,0.91448186]
[1646634120594,0.6073645,38150.0,38149.0,0.91448186]
[1646634121192,0.2151055,38150.0,38149.0,0.91448186]
[1646634122738,0.2201055,38150.0,38149.0,0.91448186]
[1646634124143,0.2201055,38150.0,38149.0,1.30323546]
[1646634124342,0.2151055,38150.0,38149.0,1.30323546]
[1646634124743,0.2151055,38150.0,38149.0,0.86123546]
[1646634125141,0.2151055,38150.0,38149.0,0.47248186]
[1646634131740,0.2151055,38150.0,38149.0,0.47086229]
[1646634133488,0.21434843,38150.0,38149.0,0.47086229]
[1646634136936,0.21434843,38150.0,38149.0,0.68313716]
[1646634138536,0.21434843,38150.0,38149.0,0.47086229]
[1646634139138,0.21434843,38150.0,38149.0,0.68313716]
[1646634143888,0.21434843,38150.0,38149.0,0.68441265]
[1646634144544,0.21434843,38150.0,38149.0,0.47086229]
[1646634144742,0.21434843,38150.0,38149.0,0.85961589]
[1646634145643,0.21434843,38150.0,38149.0,1.12495948]
[1646634145841,0.21434843,38150.0,38149.0,0.85961589]
[1646634146247,0.21434843,38150.0,38149.0,0.44586229]
[1646634146442,0.21434843,38150.0,38149.0,0.65939912]
[1646634146646,0.21734843,38150.0,38149.0,0.65939912]
[1646634147885,0.21434843,38150.0,38149.0,0.65939912]
[1646634148183,0.06013103,38160.0,38157.0,0.17824413]
[1646634148387,0.392263,38159.0,38157.0,0.17824413]
[1646634148784,1.178463,38158.0,38157.0,0.17824413]
[1646634150687,1.184463,38158.0,38157.0,0.17824413]
[1646634151188,1.236763,38158.0,38157.0,0.17824413]
[1646634152055,1.230763,38158.0,38157.0,0.17824413]
[1646634152456,1.30210752,38158.0,38157.0,0.17824413]
[1646634152653,1.3022058,38158.0,38157.0,0.17836832]
[1646634153253,1.23086128,38158.0,38157.0,0.17836832]
[1646634154255,1.28770314,38158.0,38157.0,0.17836832]
[1646634155888,1.28770314,38158.0,38157.0,0.17822742]
[1646634156188,1.60865514,38158.0,38157.0,0.17822742]
[1646634156388,1.28770314,38158.0,38157.0,0.17822742]
[1646634157490,1.23086128,38158.0,38157.0,0.17822742]
[1646634157693,1.49951345,38158.0,38157.0,0.17822742]
[1646634157893,1.17856128,38158.0,38157.0,0.17822742]
[1646634158792,1.49951345,38158.0,38157.0,0.17822742]
[1646634158994,1.17856128,38158.0,38157.0,0.17822742]
[1646634168746,1.18356128,38158.0,38157.0,0.17822742]
[1646634170049,1.17856128,38158.0,38157.0,0.17822742]
[1646634171698,1.22856128,38158.0,38157.0,0.17822742]
[1646634171899,1.28086128,38158.0,38157.0,0.17822742]
[1646634172095,1.50573778,38158.0,38157.0,0.17822742]
[1646634172696,1.87996166,38158.0,38157.0,0.17822742]
[1646634172901,1.88296166,38158.0,38157.0,0.17822742]
[1646634173096,1.83296166,38158.0,38157.0,0.17822742]
[1646634173297,1.60808516,38158.0,38157.0,0.17822742]
[1646634174144,1.60508516,38158.0,38157.0,0.17822742]
[1646634174345,1.23086128,38158.0,38157.0,0.17822742]
[1646634174646,1.60508516,38158.0,38157.0,0.17822742]
[1646634174945,1.71558816,38158.0,38157.0,0.17822742]
[1646634175146,1.82053133,38158.0,38157.0,0.17822742]
[1646634175743,1.44630745,38158.0,38157.0,0.17822742]
[1646634175948,1.73142788,38158.0,38157.0,0.17822742]
[1646634176948,1.83132788,38158.0,38157.0,0.17822742]
[1646634177146,1.457104,38158.0,38157.0,0.17822742]
[1646634177748,1.457104,38158.0,38157.0,0.1781172]
[1646634177993,1.357204,38158.0,38157.0,0.1781172]
[1646634178196,1.457104,38158.0,38157.0,0.1781172]
[1646634178993,1.357104,38158.0,38157.0,0.1781172]
[1646634179397,1.33076128,38158.0,38157.0,0.1781172]
[1646634179694,1.59930598,38158.0,38157.0,0.1781172]
[1646634180095,1.17856128,38158.0,38157.0,0.3378382]
[1646634180495,1.15356128,38158.0,38157.0,0.3378382]
[1646634180702,0.58296236,38158.0,38157.0,0.3378382]
[1646634180994,0.85031568,38158.0,38157.0,0.3378382]
[1646634181195,0.85031568,38158.0,38157.0,0.1781172]
[1646634182739,0.85041394,38158.0,38157.0,0.1781172]
[1646634183139,0.58306062,38158.0,38157.0,0.1781172]
[1646634184741,0.85042402,38158.0,38157.0,0.1781172]
[1646634186793,0.85642402,38158.0,38157.0,0.1781172]
[1646634188097,0.85042402,38158.0,38157.0,0.1781172]
[1646634188296,0.58306062,38158.0,38157.0,0.1781172]
[1646634188897,0.58806062,38158.0,38157.0,0.1781172]
[1646634189350,0.65986411,38158.0,38157.0,0.1781172]
[1646634189553,1.04906751,38158.0,38157.0,0.1781172]
[1646634189952,1.36991221,38158.0,38157.0,0.1781172]
[1646634190153,1.36491221,38158.0,38157.0,0.1781172]
[1646634190952,1.36991221,38158.0,38157.0,0.1781172]
[1646634191353,0.65986411,38158.0,38157.0,0.1781172]
[1646634191555,1.36991221,38158.0,38157.0,0.1781172]
[1646634191955,1.36991221,38158.0,38157.0,0.17561936]
[1646634192155,1.36491221,38158.0,38157.0,0.17561936]
[1646634192657,1.41721221,38158.0,38157.0,0.17561936]
[1646634192896,1.09636751,38158.0,38157.0,0.17561936]
[1646634193095,1.09636751,38158.0,38156.0,0.00022895]
[1646634193096,0.9,38157.0,38156.0,0.00022895]
[1646634193299,2.09045911,38157.0,38156.0,0.00022895]
[1646634193494,2.09045911,38157.0,38156.0,0.00011474]
[1646634193495,3.18895689,38157.0,38156.0,0.00011474]
[1646634193699,3.73544298,38157.0,38156.0,2.548e-05]
[1646634193994,3.73544298,38157.0,38146.0,0.8559]
[1646634193995,0.22714899,38153.0,38146.0,0.8559]
[1646634194194,0.22714899,38153.0,38144.0,0.7]
[1646634194195,0.26738686,38148.0,38144.0,0.7]
[1646634194396,0.21391083,38145.0,38144.0,0.7]
[1646634194595,0.392263,38144.0,38140.0,0.1302]
[1646634194794,0.19069936,38143.0,38137.0,0.48097319]
[1646634194995,0.392263,38142.0,38136.0,1.29604007]
[1646634195197,0.392263,38142.0,38136.0,0.65554007]
[1646634195403,0.392263,38141.0,38137.0,0.21354007]
[1646634196405,0.392263,38140.0,38137.0,0.21376903]
[1646634196656,0.392263,38142.0,38137.0,0.00022896]
[1646634197458,0.392263,38142.0,38136.0,0.442]
[1646634197658,0.78127582,38142.0,38138.0,0.00022896]
[1646634197959,0.22484736,38139.0,38138.0,0.00022896]
[1646634198159,1.00612318,38139.0,38138.0,0.00022896]
[1646634198658,0.392263,38138.0,38135.0,0.5]
[1646634198861,0.392263,38138.0,38137.0,0.00022896]
[1646634199760,0.392263,38138.0,38135.0,0.5]
[1646634199965,0.392263,38138.0,38136.0,0.00022896]
[1646634199966,0.444563,38137.0,38136.0,0.00022896]
[1646634200400,0.73526236,38137.0,38136.0,0.00022896]
[1646634200801,0.73826236,38137.0,38136.0,0.00022896]
[1646634201000,0.73826236,38137.0,38135.0,0.5]
[1646634201201,0.73826236,38137.0,38135.0,0.50022148]
[1646634201404,0.492263,38136.0,38135.0,0.50022148]
[1646634201600,0.73526236,38136.0,38135.0,0.50022148]
[1646634202202,0.73526236,38136.0,38135.0,0.5]
[1646634203406,1.12427518,38136.0,38135.0,0.5]
[1646634204446,1.32145365,38136.0,38135.0,0.5]
[1646634204649,0.93244083,38136.0,38135.0,0.5]
[1646634204849,1.32545365,38136.0,38135.0,0.5]
[1646634206148,0.93244083,38136.0,38135.0,0.5]
[1646634206347,1.32145365,38136.0,38135.0,0.5]
[1646634207147,0.93244083,38136.0,38135.0,0.5]
[1646634207348,1.32145365,38136.0,38135.0,0.50012523]
[1646634209100,1.32545365,38136.0,38135.0,0.50012523]
[1646634209497,1.32545365,38136.0,38135.0,0.00012523]
[1646634210302,1.32145365,38136.0,38135.0,0.00012523]
[1646634210700,0.942263,38135.0,38125.0,0.25067851]
[1646634210901,0.392263,38133.0,38125.0,0.25067851]
[1646634211101,0.392263,38131.0,38125.0,0.25067851]
[1646634211302,0.19069936,38130.0,38125.0,0.25067851]
[1646634211503,0.1,38128.0,38125.0,0.25067851]
[1646634211757,0.29069936,38128.0,38125.0,0.25067851]
[1646634212053,0.68296236,38128.0,38125.0,0.25067851]
[1646634212854,0.68596236,38128.0,38125.0,0.25067851]
[1646634214259,0.68296236,38128.0,38125.0,0.25067851]
[1646634214658,0.392263,38127.0,38122.0,0.9537]
[1646634214857,0.392263,38125.0,38122.0,0.8302]
[1646634215058,0.392263,38125.0,38122.0,0.001]
[1646634215059,0.53278587,38125.0,38122.0,0.001]
[1646634215694,0.53278587,38125.0,38124.0,0.2183766]
[1646634216898,0.53478587,38125.0,38124.0,0.2183766]
[1646634218901,0.12247587,38125.0,38124.0,0.60696758]
[1646634219150,8.914e-05,38128.0,38126.0,0.02627]
[1646634219743,8.914e-05,38128.0,38125.0,1.25]
[1646634220343,8.914e-05,38128.0,38125.0,1.25022431]
[1646634220847,0.39229,38127.0,38125.0,0.00022431]
[1646634221245,0.78686,38126.0,38125.0,0.00022431]
[1646634221443,0.78686,38126.0,38124.0,0.001]
[1646634221644,0.78686,38126.0,38124.0,0.00122431]
[1646634222049,0.39229,38125.0,38124.0,0.00122431]
[1646634222645,0.78686,38125.0,38124.0,0.001]
[1646634222892,1.17915,38125.0,38124.0,0.001]
[1646634223593,0.78686,38125.0,38124.0,0.001]
[1646634223793,1.17915,38125.0,38124.0,0.001]
[1646634224394,0.78686,38125.0,38121.0,0.00119783]
[1646634224996,0.78886,38125.0,38121.0,0.00119783]